fUST/lending_fUST_20240818
["ID","MTS","AMOUNT","RATE_DAILY","PERIOD"]
[335211504,1723981846520,-510.34,0.00016712,2]
[335211505,1723981846529,-500.0,0.00016712,2]
[335211506,1723981846539,-500.0,0.00016712,2]
[335211507,1723981846548,-500.0,0.00016712,2]
[335211508,1723981846557,-1081.99,0.00016712,2]
[335211509,1723981846567,-500.0,0.00016712,2]
[335211510,1723981846577,-500.0,0.00016712,2]
[335211511,1723981846588,-612.6,0.00016712,2]
[335211512,1723981846597,-975.06,0.00016712,2]
[335211513,1723981846607,-500.0,0.00016712,2]
[335211514,1723981846616,-500.0,0.00016712,2]
[335211515,1723981846626,-563.34,0.00016712,2]
[335211516,1723981846635,-500.0,0.00016712,2]
[335211517,1723981846644,-802.52,0.00016712,2]
[335211518,1723981846653,-6661.82,0.00016712,2]
[335211519,1723981846662,-500.0,0.00016712,2]
[335211520,1723981846671,-500.0,0.00016712,2]
[335211521,1723981846681,-941.14,0.00016712,2]
[335211522,1723981846690,-502.57367614,0.00016712,2]
[335211523,1723981846700,-501.50201965,0.00016712,2]
[335211524,1723981846709,-919.11,0.00016712,2]
[335211525,1723981846718,-2036.79,0.00016712,2]
[335211526,1723981846728,-158.50217525,0.00016712,2]
[335211527,1723981846737,-500.0,0.00016712,2]
[335211528,1723981846746,-500.0,0.00016712,2]
[335211529,1723981846755,-500.0,0.00016712,2]
[335211530,1723981846871,-814.42,0.00016712,2]
[335211531,1723981846880,-500.0,0.00016712,2]
[335211532,1723981846889,-500.0,0.00016712,2]
[335211533,1723981846899,-934.11,0.00016712,2]
[335211534,1723981846908,-679.49,0.00016712,2]
[335211535,1723981846918,-502.13860294,0.00016712,2]
[335211536,1723981846927,-1127.67,0.00016712,2]
[335211537,1723981846937,-620.99,0.00016712,2]
[335211538,1723981846946,-2535.93,0.00016712,2]
[335211539,1723981846955,-500.0,0.00016712,2]
[335211540,1723981846964,-641.23,0.00016712,2]
[335211541,1723981846975,-768.05,0.00016712,2]
[335211542,1723981846984,-500.0,0.00016712,2]
[335211543,1723981846993,-500.0,0.00016712,2]
[335211544,1723981847002,-979.71,0.00016712,2]
[335211545,1723981847012,-504.1198036,0.00016712,2]
[335211546,1723981847021,-875.34,0.00016712,2]
[335211547,1723981847030,-688.59,0.00016712,2]
[335211548,1723981847040,-643.84,0.00016712,2]
[335211549,1723981847050,-500.0,0.00016712,2]
[335211550,1723981847059,-500.0,0.00016712,2]
[335211551,1723981847068,-732.03,0.00016712,2]
[335211552,1723981847077,-500.0,0.00016712,2]
[335211553,1723981847086,-687.9,0.00016712,2]
[335211554,1723981847095,-500.0,0.00016712,2]
[335211555,1723981847105,-695.84,0.00016712,2]
[335211556,1723981847114,-500.0,0.00016712,2]
[335211557,1723981847123,-500.0,0.00016712,2]
[335211558,1723981847133,-500.0,0.00016712,2]
[335211559,1723981847143,-500.0,0.00016712,2]
[335211560,1723981847152,-500.0,0.00016712,2]
[335211561,1723981847161,-807.02,0.00016712,2]
[335211562,1723981847170,-500.0,0.00016712,2]
[335211563,1723981847182,-746.29,0.00016712,2]
[335211564,1723981847192,-694.74,0.00016712,2]
[335211565,1723981847202,-500.0,0.00016712,2]
[335211566,1723981847212,-1825.0,0.00016712,2]
[335211567,1723981847223,-759.98,0.00016712,2]
[335211568,1723981847234,-500.0,0.00016712,2]
[335211569,1723981847244,-500.0,0.00016712,2]
[335211570,1723981847253,-500.0,0.00016712,2]
[335211571,1723981847263,-500.0,0.00016712,2]
[335211572,1723981847274,-500.0,0.00016712,2]
[335211573,1723981847284,-620.11,0.00016712,2]
[335211574,1723981847294,-500.0,0.00016712,2]
[335211575,1723981847304,-500.0,0.00016712,2]
[335211576,1723981847313,-500.0,0.00016712,2]
[335211577,1723981847327,-1176.57,0.00016712,2]
[335211578,1723981847337,-666.77,0.00016712,2]
[335211579,1723981847346,-500.0,0.00016712,2]
[335211580,1723981847356,-500.0,0.00016712,2]
[335211581,1723981847365,-530.28,0.00016712,2]
[335211582,1723981847374,-656.06,0.00016712,2]
[335211583,1723981847383,-200.0,0.00016773,2]
[335211584,1723981847393,-200.0,0.00016773,2]
[335211585,1723981847402,-200.0,0.00016773,2]
[335211586,1723981847411,-1110.8112074,0.00016968,2]
[335211587,1723981847419,-500.0,0.00016986,2]
[335211588,1723981847429,-258.29326473,0.00016986,2]
[335211589,1723981848081,-310.65673527,0.00016986,2]
[335211590,1723981848091,-500.0,0.00016986,2]
[335211591,1723981848101,-500.0,0.00016986,2]
[335211592,1723981848111,-517.56,0.00016986,2]
[335211593,1723981848120,-500.0,0.00016986,2]
[335211594,1723981848129,-500.0,0.00016986,2]
[335211595,1723981848139,-500.0,0.00016986,2]
[335211596,1723981848149,-500.0,0.00016986,2]
[335211597,1723981848159,-500.0,0.00016986,2]
[335211598,1723981848169,-500.0,0.00016986,2]
[335211599,1723981848179,-500.0,0.00016986,2]
[335211600,1723981848189,-500.0,0.00016986,2]
[335211601,1723981848200,-500.0,0.00016986,2]
[335211602,1723981848209,-531.8,0.00016986,2]
[335211603,1723981848219,-213.65771476,0.00016986,2]
[335211604,1723981848228,-500.0,0.00016986,2]
[335211605,1723981848237,-500.0,0.00016986,2]
[335211606,1723981848247,-129.80974578,0.00016986,2]
[335211610,1723981897336,166.4,5.479e-05,2]
[335211622,1723982108825,9656.22406339,6.641e-05,2]
[335211623,1723982113014,809.95963071,6.641e-05,2]
[335211624,1723982123341,453.86731844,6.641e-05,2]
[335211625,1723982132638,618.64060074,6.641e-05,2]
[335211626,1723982133618,154.85514069,6.641e-05,2]
[335211628,1723982141438,175.38276741,6.641e-05,2]
[335211629,1723982148363,494.91757814,6.641e-05,2]
[335211630,1723982160444,156.84074619,6.641e-05,2]
[335211631,1723982175381,156.84074619,6.641e-05,2]
[335211633,1723982195812,166.4,5.479e-05,2]
[335211656,1723982417919,157.72210361,6.641e-05,2]
[335211660,1723982495516,166.4,5.479e-05,2]
[335211662,1723982542370,495.09081333,6.641e-05,2]
[335211663,1723982543178,155.03345781,6.641e-05,2]
[335211664,1723982545914,601.81919739,6.641e-05,2]
[335211665,1723982549492,154.82192389,6.641e-05,2]
[335211666,1723982551669,449.07732719,6.641e-05,2]
[335211668,1723982646719,-300.0,7.91e-05,2]
[335211669,1723982646743,-688.45853838,7.911e-05,2]
[335211670,1723982646764,-157.11116113,7.911e-05,2]
[335211671,1723982646786,-188.34091082,7.911e-05,2]
[335211672,1723982646807,-422.17784127,7.911e-05,2]
[335211673,1723982646830,-194.0567517,7.911e-05,2]
[335211674,1723982646853,-2142.17325985,7.911e-05,2]
[335211675,1723982646876,-798.89575329,7.954e-05,2]
[335211676,1723982646900,-157.74700768,7.954e-05,2]
[335211677,1723982646921,-160.33534964,7.954e-05,2]
[335211678,1723982646942,-1775.26291791,8.05e-05,2]
[335211679,1723982646964,-895.92966664,8.52e-05,2]
[335211680,1723982646987,-42407.2799269,8.521e-05,2]
[335211681,1723982647010,-8843.52115837,8.521e-05,2]
[335211682,1723982647032,-7012.68235792,8.521e-05,2]
[335211683,1723982647054,-33856.0273985,8.521e-05,2]
[335211685,1723982662378,-9123.54091809,8.521e-05,2]
[335211686,1723982662402,-2166.01446806,8.532e-05,2]
[335211687,1723982662424,-1613.2972388,8.532e-05,2]
[335211688,1723982662446,-1500.0,8.532e-05,2]
[335211689,1723982662468,-24900.0,8.552e-05,2]
[335211690,1723982662490,-420.0,8.701e-05,2]
[335211691,1723982662511,-2127.82180592,8.761e-05,2]
[335211692,1723982662532,-190.05416468,8.793e-05,2]
[335211693,1723982662554,-664.34210959,8.793e-05,2]
[335211694,1723982662575,-1766.30882102,8.861e-05,2]
[335211695,1723982662600,-569.49565221,8.861e-05,2]
[335211696,1723982662621,-569.49565221,8.861e-05,2]
[335211697,1723982662645,-1182.44955323,8.861e-05,2]
[335211698,1723982662667,-320.23588557,9.429e-05,2]
[335211699,1723982662693,-587.0,9.571e-05,2]
[335211700,1723982662716,-398.74543553,0.0001,2]
[335211701,1723982662736,-154.83953253,0.0001,2]
[335211702,1723982662761,-413.45265018,0.0001,2]
[335211703,1723982662788,-264.84022666,0.0001,2]
[335211704,1723982662809,-817.42780859,0.0001,2]
[335211705,1723982664741,404.39043971,8.793e-05,2]
[335211707,1723982724561,-300.0,8.049e-05,2]
[335211708,1723982724585,-5877.57013523,8.05e-05,2]
[335211709,1723982724610,-688.38340508,8.05e-05,2]
[335211710,1723982724636,-42407.2799269,8.05e-05,2]
[335211711,1723982724661,-7012.68235792,8.05e-05,2]
[335211712,1723982724684,-1500.0,8.05e-05,2]
[335211713,1723982724709,-1766.30882102,8.05e-05,2]
[335211714,1723982724732,-569.49565221,8.05e-05,2]
[335211715,1723982724756,-320.23588557,8.05e-05,2]
[335211716,1723982724780,-1613.2972388,8.05e-05,2]
[335211717,1723982724806,-2166.01446806,8.05e-05,2]
[335211718,1723982724828,-190.05416468,8.05e-05,2]
[335211719,1723982724851,-403.80521925,8.05e-05,2]
[335211723,1723982795980,166.4,5.479e-05,2]
[335211724,1723982841130,-190.38041947,9.524e-05,2]
[335211725,1723982841154,-300.0,9.756e-05,2]
[335211726,1723982841175,-2164.02483868,9.757e-05,2]
[335211727,1723982841198,-1766.30882102,9.757e-05,2]
[335211728,1723982841222,-288.24477057,0.0001,2]
[335211729,1723982841246,-6914.91877614,0.00010081,2]
[335211731,1723982955099,-1766.30882102,8.883e-05,2]
[335211732,1723982955121,-300.0,9.938e-05,2]
[335211733,1723982955142,-42407.2799269,9.939e-05,2]
[335211734,1723982955164,-1613.2972388,9.999e-05,2]
[335211735,1723982955184,-13877.67855884,0.00010081,2]
[335211736,1723982955206,-450.92417518,0.00010081,2]
[335211772,1723983032062,-1766.30882102,8.793e-05,2]
[335211774,1723983032072,-2127.82180592,9.939e-05,2]
[335211776,1723983032082,-320.23588557,9.939e-05,2]
[335211778,1723983032092,-569.76405335,9.999e-05,2]
[335211780,1723983032101,-1500.0,9.999e-05,2]
[335211782,1723983032110,-250.0,0.00010663,2]
[335211784,1723983032120,-250.0,0.00010692,2]
[335211787,1723983032129,-250.0,0.00010721,2]
[335211789,1723983032138,-250.0,0.00010751,2]
[335211791,1723983032148,-250.0,0.0001078,2]
[335211793,1723983032157,-250.0,0.00010809,2]
[335211795,1723983032167,-250.0,0.00010838,2]
[335211797,1723983032176,-250.0,0.00010867,2]
[335211799,1723983032185,-250.0,0.00010897,2]
[335211801,1723983032195,-250.0,0.00010926,2]
[335211803,1723983032204,-250.0,0.00010955,2]
[335211805,1723983032214,-250.0,0.00010984,2]
[335211806,1723983032224,-250.0,0.00011014,2]
[335211808,1723983032233,-250.0,0.00011043,2]
[335211810,1723983032242,-250.0,0.00011072,2]
[335211812,1723983032252,-250.0,0.00011101,2]
[335211814,1723983032261,-207.97679949,0.00011131,2]
[335211859,1723983038227,-42.02320051,0.00011131,2]
[335211861,1723983038237,-250.0,0.0001116,2]
[335211863,1723983038246,-250.0,0.00011189,2]
[335211865,1723983038256,-250.0,0.00011218,2]
[335211867,1723983038265,-579.38561695,0.00011731,2]
[335211869,1723983038277,-200.58603312,0.00011731,2]
[335211871,1723983038286,-5081.17203666,0.00011804,2]
[335211873,1723983038295,-2142.17325985,0.0001212,2]
[335211875,1723983038305,-2166.01446806,0.0001212,2]
[335211877,1723983038315,-1331.82114739,0.0001212,2]
[335211879,1723983038324,-3091.61067347,0.0001212,2]
[335211881,1723983038334,-2522.52336768,0.00012219,2]
[335211883,1723983038343,-1613.2972388,0.00012219,2]
[335211885,1723983038352,-17360.46066671,0.00012219,2]
[335211887,1723983038362,-2712.30651884,0.00012551,2]
[335211889,1723983038371,-5359.01984552,0.000129,2]
[335211891,1723983038381,-157.07977921,0.00012934,2]
[335211893,1723983038391,-5081.17203665,0.00012938,2]
[335211895,1723983038400,-493.25192424,0.0001295,2]
[335211897,1723983038410,-210.21705151,0.00012985,2]
[335211899,1723983038419,-210.21705151,0.00012985,2]
[335211901,1723983038429,-342.62154213,0.00012985,2]
[335211904,1723983038440,-154.69833824,0.00012989,2]
[335211906,1723983038451,-196.79108262,0.00012989,2]
[335211908,1723983038463,-500.0,0.00013,2]
[335211910,1723983038473,-862.33113123,0.00013,2]
[335211912,1723983038484,-7025.889033,0.00013,2]
[335211914,1723983038496,-154.69833824,0.00013,2]
[335211917,1723983038507,-500.0,0.0001345,2]
[335211919,1723983038517,-495.09081333,0.00013599,2]
[335211921,1723983038528,-57983.6510631,0.00013688,2]
[335211923,1723983038539,-57983.6510631,0.00013689,2]
[335211925,1723983038550,-401.05291048,0.00013698,2]
[335211927,1723983038560,-500.0,0.00013698,2]
[335211929,1723983038570,-500.0,0.00013698,2]
[335211931,1723983038580,-500.0,0.00013698,2]
[335211933,1723983038591,-500.0,0.00013698,2]
[335211936,1723983038601,-500.0,0.00013698,2]
[335211938,1723983038611,-500.0,0.00013698,2]
[335211940,1723983038622,-500.0,0.00013698,2]
[335211942,1723983038633,-632.3951555,0.00013698,2]
[335211944,1723983038643,-500.0,0.00013698,2]
[335211946,1723983038653,-245.54259825,0.00013698,2]
[335211948,1723983038663,-500.0,0.00013698,2]
[335211950,1723983038673,-500.0,0.00013698,2]
[335211952,1723983038683,-500.0,0.00013698,2]
[335211954,1723983038692,-500.0,0.00013698,2]
[335211956,1723983038702,-500.59257658,0.00013698,2]
[335211958,1723983038712,-502.51711214,0.00013698,2]
[335211960,1723983038724,-181.40740349,0.00013698,2]
[335211962,1723983038735,-500.0,0.00013698,2]
[335211964,1723983038744,-500.0,0.00013698,2]
[335211966,1723983038754,-625.38233383,0.00013698,2]
[335211968,1723983038763,-500.0,0.00013698,2]
[335211970,1723983038773,-500.0,0.00013698,2]
[335211972,1723983038782,-674.805845,0.00013699,2]
[335211974,1723983038792,-3000.0,0.00013699,2]
[335211976,1723983038802,-500.0,0.00013699,2]
[335211978,1723983038813,-500.0,0.00013699,2]
[335211980,1723983038822,-500.0,0.00013699,2]
[335211982,1723983038832,-500.0,0.00013699,2]
[335211984,1723983038841,-500.0,0.00013699,2]
[335211986,1723983038851,-500.0,0.00013699,2]
[335211988,1723983038861,-500.0,0.00013699,2]
[335211990,1723983038871,-500.0,0.00013699,2]
[335211992,1723983038880,-500.0,0.00013699,2]
[335211995,1723983038891,-500.0,0.00013699,2]
[335211997,1723983038902,-500.0,0.00013699,2]
[335211999,1723983038911,-500.0,0.00013699,2]
[335212001,1723983038921,-500.0,0.00013699,2]
[335212003,1723983038931,-500.0,0.00013699,2]
[335212005,1723983038940,-500.0,0.00013699,2]
[335212007,1723983038949,-500.0,0.00013699,2]
[335212009,1723983038959,-500.0,0.00013699,2]
[335212011,1723983038970,-500.0,0.00013699,2]
[335212013,1723983038980,-500.0,0.00013699,2]
[335212015,1723983038989,-500.0,0.00013699,2]
[335212017,1723983038999,-500.0,0.00013699,2]
[335212019,1723983039008,-500.0,0.00013699,2]
[335212021,1723983039018,-500.0,0.00013699,2]
[335212023,1723983039027,-500.0,0.00013699,2]
[335212025,1723983039037,-500.0,0.00013699,2]
[335212027,1723983039047,-500.0,0.00013699,2]
[335212029,1723983039056,-500.0,0.00013699,2]
[335212031,1723983039066,-500.0,0.00013699,2]
[335212032,1723983039075,-500.0,0.00013699,2]
[335212035,1723983039085,-500.0,0.00013699,2]
[335212037,1723983039095,-500.0,0.00013699,2]
[335212039,1723983039107,-500.0,0.00013699,2]
[335212041,1723983039118,-500.0,0.00013699,2]
[335212043,1723983039129,-500.0,0.00013699,2]
[335212045,1723983039140,-500.0,0.00013699,2]
[335212047,1723983039150,-500.0,0.00013699,2]
[335212049,1723983039159,-500.0,0.00013699,2]
[335212051,1723983039168,-500.0,0.00013699,2]
[335212053,1723983039178,-500.0,0.00013699,2]
[335212055,1723983039187,-500.0,0.00013699,2]
[335212057,1723983039197,-500.0,0.00013699,2]
[335212059,1723983039206,-500.0,0.00013699,2]
[335212061,1723983039215,-500.0,0.00013699,2]
[335212064,1723983039225,-500.0,0.00013699,2]
[335212066,1723983039234,-500.0,0.00013699,2]
[335212068,1723983039243,-500.0,0.00013699,2]
[335212070,1723983039253,-500.0,0.00013699,2]
[335212072,1723983039262,-500.0,0.00013699,2]
[335212074,1723983039271,-500.0,0.00013699,2]
[335212076,1723983039281,-500.0,0.00013699,2]
[335212078,1723983039291,-510.33154847,0.00013699,2]
[335212080,1723983039300,-500.0,0.00013699,2]
[335212082,1723983039309,-500.0,0.00013699,2]
[335212084,1723983039318,-500.0,0.00013699,2]
[335212086,1723983039328,-500.0,0.00013699,2]
[335212088,1723983039337,-500.0,0.00013699,2]
[335212090,1723983039347,-500.0,0.00013699,2]
[335212092,1723983039356,-500.0,0.00013699,2]
[335212094,1723983039366,-500.0,0.00013699,2]
[335212096,1723983039375,-500.0,0.00013699,2]
[335212098,1723983039384,-500.0,0.00013699,2]
[335212100,1723983039394,-500.0,0.00013699,2]
[335212101,1723983039403,-500.0,0.00013699,2]
[335212103,1723983039413,-500.0,0.00013699,2]
[335212105,1723983039423,-500.0,0.00013699,2]
[335212107,1723983039433,-500.0,0.00013699,2]
[335212108,1723983039443,-500.0,0.00013699,2]
[335212109,1723983039453,-500.0,0.00013699,2]
[335212110,1723983039464,-500.0,0.00013699,2]
[335212111,1723983039479,-500.0,0.00013699,2]
[335212112,1723983039489,-500.0,0.00013699,2]
[335212113,1723983039498,-500.0,0.00013699,2]
[335212114,1723983039507,-500.0,0.00013699,2]
[335212115,1723983039518,-500.0,0.00013699,2]
[335212116,1723983039527,-500.0,0.00013699,2]
[335212117,1723983039536,-500.0,0.00013699,2]
[335212118,1723983039545,-500.0,0.00013699,2]
[335212119,1723983039555,-211.34070106,0.00013699,2]
[335212120,1723983039565,-500.0,0.00013699,2]
[335212121,1723983039574,-500.0,0.00013699,2]
[335212122,1723983039583,-500.0,0.00013699,2]
[335212123,1723983039593,-500.0,0.00013699,2]
[335212124,1723983039603,-5081.17203665,0.00014071,2]
[335212125,1723983039613,-500.0,0.00014158,2]
[335212126,1723983039623,-215.67938,0.00014247,2]
[335212127,1723983039633,-193.799589,0.00014247,2]
[335212128,1723983039642,-500.0,0.00014904,2]
[335212129,1723983039652,-953.29878775,0.00015,2]
[335212130,1723983039662,-155.14004745,0.00015,2]
[335212131,1723983039672,-5081.17203665,0.00015205,2]
[335212132,1723983039682,-500.0,0.00015688,2]
[335212133,1723983039691,-500.0,0.00015688,2]
[335212134,1723983039701,-1500.0,0.00016,2]
[335212135,1723983039710,-5359.01984551,0.00016,2]
[335212136,1723983039720,-1110.8112074,0.00016163,2]
[335212137,1723983039732,-88888.0,0.00016238,2]
[335212138,1723983039743,-57983.6510631,0.00016328,2]
[335212139,1723983039753,-5081.17203665,0.00016338,2]
[335212140,1723983039762,-3400.62334677,0.00016338,2]
[335212141,1723983039772,-33720.69177654,0.00016338,2]
[335212143,1723983039782,-173950.953189,0.00016428,2]
[335212145,1723983039792,-500.0,0.00016438,2]
[335212146,1723983039802,-500.0,0.00016438,2]
[335212147,1723983039813,-500.0,0.00016438,2]
[335212148,1723983039822,-522.51656014,0.00016438,2]
[335212149,1723983039833,-500.0,0.00016438,2]
[335212150,1723983039843,-174.00941654,0.00016438,2]
[335212151,1723983039855,-555.96616486,0.00016438,2]
[335212152,1723983039865,-500.0,0.00016438,2]
[335212153,1723983039876,-500.0,0.00016438,2]
[335212154,1723983039886,-500.0,0.00016438,2]
[335212155,1723983039895,-500.0,0.00016438,2]
[335212156,1723983039906,-513.76259266,0.00016438,2]
[335212158,1723983039917,-261.95080758,0.00016438,2]
[335212159,1723983039928,-500.0,0.00016438,2]
[335212160,1723983039939,-500.0,0.00016438,2]
[335212161,1723983039949,-509.86420055,0.00016438,2]
[335212162,1723983039960,-500.0,0.00016438,2]
[335212163,1723983039973,-500.0,0.00016438,2]
[335212164,1723983039982,-503.1800564,0.00016438,2]
[335212165,1723983039992,-500.0,0.00016438,2]
[335212166,1723983040001,-504.28874436,0.00016438,2]
[335212167,1723983040011,-210.28986932,0.00016438,2]
[335212168,1723983040020,-500.0,0.00016438,2]
[335212169,1723983040030,-509.8537679,0.00016438,2]
[335212170,1723983040040,-510.71326632,0.00016438,2]
[335212171,1723983040051,-514.05718141,0.00016438,2]
[335212172,1723983040061,-500.0,0.00016438,2]
[335212173,1723983040072,-500.0,0.00016438,2]
[335212174,1723983040083,-511.01685736,0.00016438,2]
[335212175,1723983040095,-500.0,0.00016438,2]
[335212176,1723983040106,-500.0,0.00016438,2]
[335212177,1723983040116,-500.0,0.00016438,2]
[335212178,1723983040127,-170.13990363,0.00016438,2]
[335212179,1723983040139,-500.0,0.00016438,2]
[335212180,1723983040151,-530.88077677,0.00016438,2]
[335212181,1723983040161,-504.84887392,0.00016438,2]
[335212182,1723983040171,-500.0,0.00016438,2]
[335212183,1723983040182,-500.0,0.00016438,2]
[335212184,1723983040193,-500.0,0.00016438,2]
[335212185,1723983040203,-507.84303351,0.00016438,2]
[335212186,1723983040214,-500.0,0.00016438,2]
[335212187,1723983040224,-500.0,0.00016438,2]
[335212188,1723983040234,-195.19548428,0.00016438,2]
[335212189,1723983040357,-500.0,0.00016438,2]
[335212190,1723983040367,-500.0,0.00016438,2]
[335212191,1723983040376,-500.0,0.00016438,2]
[335212192,1723983040385,-500.0,0.00016438,2]
[335212193,1723983040395,-500.0,0.00016438,2]
[335212194,1723983040404,-500.0,0.00016438,2]
[335212195,1723983040413,-505.6636181,0.00016438,2]
[335212196,1723983040422,-500.0,0.00016438,2]
[335212197,1723983040431,-500.0,0.00016438,2]
[335212198,1723983040440,-500.0,0.00016438,2]
[335212199,1723983040450,-502.12097442,0.00016438,2]
[335212200,1723983040459,-761.67,0.00016438,2]
[335212202,1723983040468,-500.0,0.00016438,2]
[335212204,1723983040478,-500.0,0.00016438,2]
[335212205,1723983040486,-500.0,0.00016438,2]
[335212206,1723983040495,-500.0,0.00016438,2]
[335212207,1723983040505,-500.0,0.00016438,2]
[335212208,1723983040514,-859.66,0.00016438,2]
[335212209,1723983040523,-500.0,0.00016438,2]
[335212210,1723983040533,-500.0,0.00016438,2]
[335212211,1723983040542,-358.63815817,0.00016438,2]
[335212212,1723983040552,-500.0,0.00016438,2]
[335212213,1723983040561,-500.0,0.00016438,2]
[335212214,1723983040570,-500.0,0.00016438,2]
[335212215,1723983040580,-500.0,0.00016438,2]
[335212216,1723983040589,-500.0,0.00016438,2]
[335212217,1723983040598,-500.0,0.00016438,2]
[335212218,1723983040608,-500.0,0.00016438,2]
[335212219,1723983040617,-500.0,0.00016438,2]
[335212220,1723983040626,-500.0,0.00016438,2]
[335212221,1723983040635,-705.82,0.00016438,2]
[335212222,1723983040645,-500.0,0.00016438,2]
[335212223,1723983040654,-500.0,0.00016438,2]
[335212224,1723983040663,-500.0,0.00016438,2]
[335212225,1723983040672,-500.0,0.00016438,2]
[335212226,1723983040682,-500.0,0.00016438,2]
[335212227,1723983040691,-547.58,0.00016438,2]
[335212228,1723983040700,-500.0,0.00016438,2]
[335212229,1723983040710,-500.0,0.00016438,2]
[335212230,1723983040719,-500.0,0.00016438,2]
[335212231,1723983040733,-500.0,0.00016438,2]
[335212232,1723983040743,-500.0,0.00016438,2]
[335212233,1723983040752,-574.17,0.00016438,2]
[335212234,1723983040761,-500.0,0.00016438,2]
[335212235,1723983040770,-466.80532712,0.00016438,2]
[335212236,1723983040780,-500.0,0.00016438,2]
[335212237,1723983040789,-500.0,0.00016438,2]
[335212238,1723983040798,-500.0,0.00016438,2]
[335212239,1723983040809,-500.0,0.00016438,2]
[335212240,1723983040819,-500.0,0.00016438,2]
[335212241,1723983040828,-500.0,0.00016438,2]
[335212242,1723983040837,-500.0,0.00016438,2]
[335212243,1723983040846,-500.0,0.00016438,2]
[335212244,1723983040856,-500.0,0.00016438,2]
[335212245,1723983040865,-500.0,0.00016438,2]
[335212246,1723983040874,-167.27726661,0.00016438,2]
[335212247,1723983040883,-500.0,0.00016438,2]
[335212248,1723983040892,-501.93888408,0.00016438,2]
[335212249,1723983040901,-500.0,0.00016438,2]
[335212250,1723983040911,-500.0,0.00016438,2]
[335212251,1723983040921,-309.0108856,0.00016438,2]
[335212252,1723983040931,-415.53294663,0.00016438,2]
[335212253,1723983040940,-500.0,0.00016438,2]
[335212254,1723983040950,-550.64,0.00016438,2]
[335212255,1723983040959,-500.0,0.00016438,2]
[335212256,1723983040970,-500.0,0.00016438,2]
[335212257,1723983040986,-500.0,0.00016438,2]
[335212258,1723983040996,-500.0,0.00016438,2]
[335212259,1723983041006,-694.6,0.00016438,2]
[335212260,1723983041016,-997.95,0.00016438,2]
[335212261,1723983041026,-500.0,0.00016438,2]
[335212262,1723983041035,-500.0,0.00016438,2]
[335212263,1723983041045,-663.36,0.00016438,2]
[335212264,1723983041054,-500.0,0.00016438,2]
[335212265,1723983041064,-506.83744732,0.00016438,2]
[335212266,1723983041073,-500.0,0.00016438,2]
[335212267,1723983041084,-500.0,0.00016438,2]
[335212268,1723983041094,-500.0,0.00016438,2]
[335212269,1723983041103,-502.75146287,0.00016438,2]
[335212270,1723983041113,-500.0,0.00016438,2]
[335212271,1723983041123,-500.0,0.00016438,2]
[335212272,1723983041132,-500.0,0.00016438,2]
[335212273,1723983041142,-500.0,0.00016438,2]
[335212274,1723983041152,-1027.12,0.00016438,2]
[335212275,1723983041161,-692.6,0.00016438,2]
[335212276,1723983041170,-500.0,0.00016438,2]
[335212277,1723983041180,-500.0,0.00016438,2]
[335212278,1723983041189,-500.0,0.00016438,2]
[335212279,1723983041198,-500.0,0.00016438,2]
[335212280,1723983041208,-500.0,0.00016438,2]
[335212281,1723983041218,-646.94,0.00016438,2]
[335212282,1723983041228,-500.0,0.00016438,2]
[335212283,1723983041238,-500.0,0.00016438,2]